bitfinex-derivatives/quotes_SOLF0:USTF0_20260104
["timestamp","ask_amount","ask_price","bid_price","bid_amount"]
[1767509969272,5.6442001,133.79,133.76,2.26056548]
[1767509969474,0.04904824,133.8,133.76,2.26056548]
[1767509969772,5.64412837,133.79,133.76,2.26056548]
[1767509969968,0.04904824,133.8,133.76,2.26056548]
[1767509970175,5.64423906,133.79,133.76,2.26056548]
[1767509970371,0.04904824,133.8,133.76,2.26056548]
[1767509970673,5.6442931,133.79,133.76,2.26056548]
[1767509970864,0.04904824,133.8,133.76,2.26056548]
[1767509971062,9.11598888,133.84,133.76,8.02557241]
[1767509971264,5.64475065,133.83,133.78,1.29417241]
[1767509971474,2.38838888,133.84,133.78,1.29417241]
[1767509972377,0.05085393,133.82,133.8,0.04975857]
[1767509975269,2.38838888,133.84,133.8,0.04975857]
[1767509976481,0.04943154,133.83,133.8,0.04975857]
[1767509978073,2.41694732,133.83,133.8,0.04975857]
[1767509984485,2.41694732,133.83,133.8,0.87742954]
[1767509985678,2.41694732,133.83,133.8,0.04975857]
[1767509986988,2.41694732,133.83,133.79,0.82767097]
[1767509988086,2.41694732,133.83,133.8,0.04878224]
[1767509995093,2.41694732,133.83,133.77,0.82767097]
[1767509995890,2.41694732,133.83,133.78,0.82767097]
[1767509996889,2.41694732,133.83,133.77,6.7309]
[1767509997092,2.41218267,133.81,133.75,6.7316]
[1767509997294,2.41218267,133.81,133.75,7.55927097]
[1767509997990,2.41218267,133.81,133.75,6.7316]
[1767509998291,0.04959212,133.79,133.75,7.55927097]
[1767509998783,0.04959212,133.79,133.76,0.88021913]
[1767510000392,2.5459325,133.85,133.76,8.28374816]
[1767510000689,8.06926636,133.84,133.8,0.82767097]
[1767510000894,5.52333386,133.83,133.8,0.82767097]
[1767510001096,2.5459325,133.84,133.8,0.82767097]
[1767510001492,0.05085811,133.83,133.81,0.05602982]
[1767510002897,2.59679061,133.83,133.77,6.7306]
[1767510003086,2.59679061,133.83,133.79,0.82767097]
[1767510003484,2.59679061,133.83,133.78,0.82767097]
[1767510003898,2.59679061,133.83,133.79,0.05655309]
[1767510004397,2.59679061,133.83,133.77,0.82767097]
[1767510004597,2.5459325,133.83,133.77,0.82767097]
[1767510004798,2.5459325,133.81,133.76,0.82767097]
[1767510005499,0.05652065,133.8,133.76,0.82767097]
[1767510006807,2.60245315,133.8,133.76,0.82767097]
[1767510008210,2.60245315,133.8,133.77,0.05613302]
[1767510011310,7.55527097,133.84,133.78,0.82767097]
[1767510011311,2.5459325,133.82,133.78,0.82767097]
[1767510011512,2.5459325,133.83,133.79,0.82767097]
[1767510012710,0.04974631,133.82,133.79,0.82767097]
[1767510013415,0.04974631,133.82,133.78,0.82767097]
[1767510014214,2.5459325,133.83,133.79,0.88185638]
[1767510015213,0.05462204,133.82,133.79,0.88185638]
[1767510021120,2.60055454,133.82,133.76,7.55887097]
[1767510021416,2.5459325,133.82,133.76,0.82767097]
[1767510021621,8.08527254,133.81,133.75,89.14767097]
[1767510021819,2.5459325,133.81,133.75,89.14767097]
[1767510022421,0.0478661,133.79,133.77,0.05424525]
[1767510026326,2.5937986,133.79,133.76,0.82767097]
[1767510028224,2.5937986,133.79,133.73,95.0525]
[1767510028425,2.5937986,133.79,133.74,0.82767097]
[1767510029719,2.5937986,133.79,133.73,95.0525]
[1767510029922,2.5937986,133.79,133.74,0.82767097]
[1767510030824,2.5937986,133.79,133.73,88.32]
[1767510031030,2.5937986,133.79,133.73,89.14767097]
[1767510031828,2.5937986,133.79,133.75,0.0545869]
[1767510034226,2.42949717,133.78,133.72,6.7334]
[1767510034433,2.42949717,133.78,133.72,7.56107097]
[1767510034827,2.42949717,133.78,133.7,97.79888]
[1767510035133,2.42949717,133.78,133.72,0.82767097]
[1767510035332,0.05262634,133.76,133.74,0.04975838]
[1767510036729,2.48212351,133.76,133.71,7.56157097]
[1767510036929,2.48212351,133.76,133.71,6.7339]
[1767510038032,2.48212351,133.76,133.7,91.89245097]
[1767510038230,2.48212351,133.76,133.7,91.06478]
[1767510038434,2.48212351,133.76,133.7,91.89245097]
[1767510040334,0.05262634,133.76,133.7,98.62655097]
[1767510040549,0.05262634,133.76,133.74,0.82767097]
[1767510040839,2.42949717,133.81,133.74,0.88387907]
[1767510041136,7.96111118,133.8,133.74,0.82767097]
[1767510041333,2.42949717,133.8,133.74,0.82767097]
[1767510041533,2.42949717,133.8,133.75,0.82767097]
[1767510041735,0.04794769,133.79,133.76,0.05078717]
[1767510042636,0.04794769,133.79,133.76,0.87845814]
[1767510042937,2.42949717,133.83,133.78,0.82767097]
[1767510043838,0.04856572,133.82,133.79,0.87660351]
[1767510046434,0.04856572,133.82,133.79,0.04893254]
[1767510046739,0.04856572,133.82,133.79,1.34237883]
[1767510047340,2.42949717,133.87,133.79,8.07207883]
[1767510047540,2.42949717,133.87,133.79,8.02314629]
[1767510047740,2.42949717,133.87,133.81,1.29344629]
[1767510047943,2.42949717,133.86,133.81,1.29344629]
[1767510048343,0.05141138,133.85,133.82,0.0496472]
[1767510050843,2.48090855,133.85,133.77,6.7306]
[1767510051038,2.48090855,133.85,133.79,1.29344629]
[1767510051746,2.48090855,133.85,133.81,1.29344629]
[1767510052047,0.0528757,133.84,133.82,0.05446358]
[1767510054949,2.48237287,133.84,133.78,6.7303]
[1767510055141,2.48237287,133.84,133.79,1.29344629]
[1767510056143,2.48237287,133.84,133.8,0.05693761]
[1767510057349,2.48237287,133.84,133.8,1.3503839]
[1767510058954,2.48237287,133.84,133.8,0.05693761]
[1767510060443,2.48237287,133.84,133.8,1.3503839]
[1767510063058,2.42391814,133.89,133.82,1.29344629]
[1767510063556,2.42391814,133.88,133.82,1.29344629]
[1767510063850,2.42391814,133.88,133.81,96.32234629]
[1767510064050,0.05740629,133.86,133.83,0.05413751]
[1767510066851,2.42391814,133.9,133.83,1.3475838]
[1767510067052,2.42391814,133.9,133.85,1.29344629]
[1767510067459,2.42391814,133.9,133.85,8.02024629]
[1767510067853,0.05517102,133.89,133.86,0.04986453]
[1767510069050,9.14721814,133.93,133.86,0.04986453]
[1767510069250,2.42391814,133.92,133.86,0.04986453]
[1767510070158,2.4812793,133.9,133.86,0.04986453]
[1767510072756,0.05736116,133.9,133.86,0.04986453]
[1767510073561,2.42391814,133.92,133.86,0.04986453]
[1767510074556,2.42391814,133.94,133.89,1.29344629]
[1767510075354,2.42391814,133.94,133.87,1.29344629]
[1767510075857,0.05223153,133.92,133.88,6.7252]
[1767510076156,2.42391814,133.94,133.89,0.04951816]
[1767510077761,2.42391814,133.94,133.89,8.06776445]
[1767510078071,0.05630312,133.93,133.89,8.06776445]
[1767510078265,2.42391814,133.96,133.89,8.06776445]
[1767510078458,2.42391814,133.96,133.9,6.7243]
[1767510079971,0.05231812,133.94,133.89,1.34296445]
[1767510080871,0.05231812,133.94,133.9,6.724]
[1767510084177,2.42391814,133.98,133.9,1.29344629]
[1767510085271,0.05719273,133.95,133.93,0.05185383]
[1767510089877,2.42391814,133.98,133.93,0.05185383]
[1767510091189,2.72975458,133.97,133.93,0.05185383]
[1767510092288,2.67495716,133.96,133.87,4.03420629]
[1767510093199,2.67495716,133.96,133.88,6.7252]
[1767510093398,2.67495716,133.96,133.9,0.05686606]
[1767510095000,2.4785399,133.95,133.9,0.05686606]
[1767510095185,2.52793448,133.94,133.9,0.05686606]
[1767510106514,2.52793448,133.94,133.9,6.78116606]
[1767510106515,0.04939458,133.94,133.9,6.78116606]
[1767510107806,2.4785399,133.96,133.91,1.29344629]
[1767510108206,2.4785399,133.96,133.9,0.05686606]
[1767510108406,2.4785399,133.96,133.9,1.35031235]
[1767510108613,2.4785399,133.96,133.91,0.8262207]
[1767510109111,0.05061095,133.95,133.92,0.8262207]
[1767510112616,2.52915085,133.95,133.91,7.5501207]
[1767510114023,2.52915085,133.95,133.91,6.7239]
[1767510114211,2.52915085,133.95,133.91,7.5501207]
[1767510114410,2.52915085,133.95,133.92,0.8262207]
[1767510115611,0.05061095,133.95,133.92,0.8262207]
[1767510117718,0.05061095,133.95,133.93,0.8262207]
[1767510120112,20.53178632,133.99,133.93,0.8262207]
[1767510120318,5.55100377,133.98,133.94,0.8262207]
[1767510120515,20.53178632,133.99,133.91,88.22]
[1767510120516,5.55100377,133.97,133.95,0.8262207]
[1767510120817,2.63896391,133.99,133.95,0.8262207]
[1767510121220,0.05490379,133.98,133.96,0.05051407]
[1767510127923,2.6938677,133.98,133.92,6.7231]
[1767510128122,2.6938677,133.98,133.93,0.8262207]
[1767510129326,2.6938677,133.98,133.94,0.05674704]
[1767510134332,2.6938677,133.98,133.94,0.88296774]
[1767510138430,0.05490379,133.98,133.94,7.60526774]
[1767510138632,2.63896391,134.0,133.95,0.8262207]
[1767510139632,2.6889653,133.99,133.95,0.8262207]
[1767510143438,2.6889653,133.99,133.94,0.88296774]
[1767510145238,2.6889653,133.99,133.94,0.05674704]
[1767510146839,2.63896391,133.98,133.94,0.05674704]
[1767510163554,2.63896391,133.98,133.94,0.88296774]
[1767510164447,2.63896391,133.98,133.94,0.05674704]
[1767510168444,2.63896391,133.98,133.87,134.76971239]
[1767510168445,13.4467,133.93,133.78,13.99097694]
[1767510168649,22.45,133.96,133.67,2.49290153]
[1767510168650,104.6838,133.8,133.67,2.49290153]
[1767510168853,110.23861692,133.79,133.67,2.49290153]
[1767510169148,0.8262207,133.77,133.68,2.49290153]
[1767510169349,0.8262207,133.77,133.68,3.31912223]
[1767510169550,0.05592635,133.74,133.71,0.04896034]
[1767510169850,0.8262207,133.77,133.71,0.04896034]
[1767510170451,89.51517023,133.78,133.71,0.04896034]
[1767510171248,0.05550778,133.76,133.71,0.04896034]
[1767510172942,1.29517023,133.81,133.71,4.04186187]
[1767510173144,88.24,133.8,133.72,1.29517023]
[1767510173642,6.728,133.83,133.73,107.22800153]
[1767510173643,1.29517023,133.83,133.73,107.22800153]
[1767510173844,89.55517023,133.83,133.74,3.78807176]
[1767510174047,89.55517023,133.83,133.77,0.0562722]
[1767510174247,0.04808951,133.81,133.77,0.0562722]
[1767510178958,1.29517023,133.8,133.72,2.49290153]
[1767510179454,1.29517023,133.8,133.7,1.29517023]
[1767510179659,1.29517023,133.8,133.7,2.49290153]
[1767510179848,1.29517023,133.79,133.7,3.78807176]
[1767510180049,1.29517023,133.79,133.74,0.04773769]
[1767510180963,0.05615279,133.78,133.74,0.04773769]
[1767510188259,0.05615279,133.78,133.74,2.75886832]
[1767510188763,8.02387023,133.82,133.74,4.05403855]
[1767510190563,6.7277,133.84,133.75,9.44293063]
[1767510190761,8.02287023,133.84,133.76,2.71113063]
[1767510191568,8.02287023,133.84,133.76,4.00630086]
[1767510191767,0.03418825,133.81,133.79,0.05141011]
[1767510191973,96.36177023,133.86,133.79,0.05141011]
[1767510195581,6.7271,133.85,133.79,0.05141011]
[1767510196786,194.27257023,133.86,133.79,0.05141011]
[1767510196986,1.29517023,133.84,133.79,0.05141011]
[1767510197788,6.7281,133.83,133.79,0.05141011]
[1767510205694,88.32,133.84,133.79,0.05141011]
[1767510206795,95.0475,133.84,133.79,0.05141011]
[1767510207294,5.78970463,133.83,133.79,0.05141011]
[1767510207494,95.0475,133.84,133.79,0.05141011]
[1767510207695,5.79093844,133.83,133.79,0.05141011]
[1767510207897,95.0475,133.84,133.79,0.05141011]
[1767510208095,5.79093132,133.83,133.79,0.05141011]
[1767510208291,95.0475,133.84,133.79,0.05141011]
[1767510208499,5.7968687,133.83,133.79,0.05141011]
[1767510208699,95.0475,133.84,133.79,0.05141011]
[1767510208888,5.79650074,133.83,133.79,0.05141011]
[1767510209091,95.0475,133.84,133.79,0.05141011]
[1767510209290,5.79651269,133.83,133.79,0.05141011]
[1767510209493,5.79651269,133.82,133.79,0.05141011]
[1767510209693,95.0475,133.84,133.79,0.05141011]
[1767510209888,5.80327695,133.83,133.79,0.05141011]
[1767510210095,5.80327695,133.82,133.79,0.05141011]
[1767510210397,104.63,133.87,133.79,0.05141011]
[1767510210398,104.6119,133.89,133.79,3.12406317]
[1767510210601,7.10752137,133.88,133.83,0.05143142]
[1767510210794,5.81235114,133.87,133.83,0.05143142]
[1767510212197,5.81235114,133.86,133.83,0.05143142]
[1767510212398,5.81235114,133.85,133.83,0.05143142]
[1767510212601,1.29517023,133.91,133.83,3.06207971]
[1767510212801,1.29517023,133.91,133.86,0.05059037]
[1767510214896,6.7251,133.89,133.86,0.05059037]
[1767510215413,1.29517023,133.91,133.86,0.05059037]
[1767510216903,1.29517023,133.89,133.8,3.01064829]
[1767510217201,89.61517023,133.9,133.8,3.01064829]
[1767510217906,0.05059037,133.86,133.84,0.05315609]
[1767510221803,8.01997023,133.9,133.84,0.05315609]
[1767510224700,5.75986122,133.89,133.84,0.05315609]
[1767510224901,8.01997023,133.9,133.84,3.06380438]
[1767510225102,8.01887023,133.92,133.84,3.06380438]
[1767510225304,5.76038423,133.91,133.87,0.05434702]
[1767510225511,8.01887023,133.92,133.87,0.05434702]
[1767510225708,5.75931252,133.91,133.87,0.05434702]
[1767510225905,6.724,133.91,133.87,0.05434702]
[1767510226107,1.29517023,133.88,133.79,3.01064829]
[1767510226410,8.02167023,133.86,133.79,3.01064829]
[1767510227215,0.05332326,133.84,133.81,0.05585293]
[1767510241826,6.78082326,133.84,133.81,0.05585293]
[1767510245223,104.6127,133.89,133.81,3.39266275]
[1767510245431,5.77396392,133.88,133.81,3.39266275]
[1767510245727,5.77396392,133.87,133.81,3.39266275]
[1767510245916,6.7265,133.86,133.81,3.39266275]
[1767510246122,6.7265,133.86,133.81,4.22042168]
[1767510246321,6.7265,133.86,133.81,3.39266275]
[1767510248925,6.7258,133.88,133.81,4.22042168]
[1767510249125,5.77475699,133.87,133.82,4.16456875]
[1767510249326,6.7258,133.88,133.82,4.16456875]
[1767510249641,12.50146601,133.87,133.82,4.16456875]
[1767510249932,6.726,133.87,133.83,0.04918438]
[1767510252831,0.82775893,133.89,133.79,0.82775893]
[1767510252832,6.59792953,133.86,133.79,0.82775893]
[1767510253030,5.7701706,133.85,133.79,0.82775893]
[1767510253334,0.82775893,133.87,133.8,0.82775893]
[1767510253535,5.77125939,133.86,133.8,0.82775893]
[1767510253734,5.77125939,133.85,133.8,0.82775893]
[1767510253933,0.05020814,133.84,133.81,0.04885492]
[1767510257838,6.7282,133.83,133.81,0.04885492]
[1767510262441,0.05020814,133.84,133.81,0.87661385]
[1767510262748,88.3,133.89,133.83,0.82775893]
[1767510262953,5.77414156,133.88,133.83,0.82775893]
[1767510263153,5.77414156,133.87,133.83,0.82775893]
[1767510263348,5.77414156,133.86,133.83,0.82775893]
[1767510263643,88.3,133.89,133.83,0.88045664]
[1767510263844,12.49975458,133.88,133.84,0.82775893]
[1767510264046,5.77415458,133.87,133.85,0.04853448]
[1767510274458,192.8986,133.91,133.85,0.04853448]
[1767510274459,89.12775893,133.91,133.85,0.04853448]
[1767510275761,6.725,133.89,133.85,0.04853448]
[1767510276161,0.82775893,133.9,133.85,0.04853448]
[1767510276664,0.82775893,133.89,133.85,0.04853448]
[1767510277254,6.7255,133.88,133.85,0.04853448]
[1767510286471,5.74524876,133.87,133.85,0.04853448]
[1767510286670,6.7255,133.88,133.85,0.04853448]
[1767510288171,5.74423099,133.87,133.85,0.04853448]
[1767510288371,6.7255,133.88,133.85,0.04853448]
[1767510288577,5.74423099,133.87,133.85,0.04853448]
[1767510288871,6.7255,133.88,133.85,0.04853448]
[1767510289171,5.744179,133.87,133.85,0.04853448]
[1767510289372,6.7255,133.88,133.85,0.04853448]
[1767510290670,5.74444589,133.87,133.85,0.04853448]
[1767510290871,6.7255,133.88,133.85,0.04853448]
[1767510291871,5.74432151,133.87,133.85,0.04853448]
[1767510292072,6.7255,133.88,133.85,0.04853448]
[1767510301190,5.74451013,133.87,133.85,0.04853448]
[1767510301386,6.7255,133.88,133.85,0.04853448]
[1767510302078,1.29265093,133.86,133.77,3.69958427]
[1767510302284,1.29265093,133.84,133.77,3.69958427]
[1767510302593,12.47300795,133.83,133.77,3.69958427]
[1767510302793,6.728,133.83,133.77,3.69958427]
[1767510303090,0.04853448,133.81,133.79,0.05298934]
[1767510305693,0.04853448,133.81,133.75,3.69958427]
[1767510306790,0.04853448,133.81,133.77,0.05170012]
[1767510319105,6.77753448,133.81,133.77,0.05170012]
[1767510331508,0.04853448,133.81,133.77,0.05170012]
[1767510332616,0.04853448,133.81,133.77,3.6026788]
[1767510335415,0.04853448,133.81,133.77,0.05170012]
[1767510336823,6.7295,133.8,133.77,0.05170012]
[1767510339625,0.04853448,133.81,133.77,0.05170012]
[1767510341835,6.77753448,133.81,133.77,0.05170012]
[1767510343934,6.7295,133.8,133.77,0.05170012]
[1767510348238,5.74810369,133.79,133.77,0.05170012]
[1767510348439,6.7295,133.8,133.77,0.05170012]
[1767510348736,5.74808358,133.79,133.77,0.05170012]
[1767510348936,6.7295,133.8,133.77,0.05170012]
[1767510349133,5.74808358,133.79,133.77,0.05170012]
[1767510349333,6.7295,133.8,133.77,0.05170012]
[1767510349535,5.74917579,133.79,133.77,0.05170012]
[1767510349837,6.7295,133.8,133.77,0.05170012]
[1767510350027,5.74917357,133.79,133.77,0.05170012]
[1767510350234,6.7295,133.8,133.77,0.05170012]
[1767510350534,5.75057789,133.79,133.77,0.05170012]
[1767510350838,6.7295,133.8,133.77,0.05170012]
[1767510351039,5.75057789,133.79,133.77,0.05170012]
[1767510351334,6.7295,133.8,133.77,0.05170012]
[1767510351638,5.7507293,133.79,133.77,0.05170012]
[1767510351840,6.7295,133.8,133.77,0.05170012]
[1767510352137,5.75073152,133.79,133.77,0.05170012]
[1767510352328,6.7295,133.8,133.77,0.05170012]
[1767510352525,5.75069138,133.79,133.77,0.05170012]
[1767510352724,6.7295,133.8,133.77,0.05170012]
[1767510352927,5.75069138,133.79,133.77,0.05170012]
[1767510353137,6.7295,133.8,133.77,0.05170012]
[1767510353327,5.75067076,133.79,133.77,0.05170012]
[1767510353528,6.7295,133.8,133.77,0.05170012]
[1767510353734,5.7506824,133.79,133.77,0.05170012]
[1767510353937,6.7295,133.8,133.77,0.05170012]
[1767510354238,5.75067076,133.79,133.77,0.05170012]
[1767510354438,6.7295,133.8,133.77,0.05170012]
[1767510354633,5.75065886,133.79,133.77,0.05170012]
[1767510354840,6.7295,133.8,133.77,0.05170012]
[1767510355039,5.75064926,133.79,133.77,0.05170012]
[1767510355240,6.7295,133.8,133.77,0.05170012]
[1767510355442,5.75064039,133.79,133.77,0.05170012]
[1767510355742,6.7295,133.8,133.77,0.05170012]
[1767510355937,5.75064652,133.79,133.77,0.05170012]
[1767510356241,6.7295,133.8,133.77,0.05170012]
[1767510356539,0.04853448,133.81,133.77,4.7771742]
[1767510357632,0.04853448,133.81,133.77,3.94909027]
[1767510357936,0.04853448,133.81,133.77,4.7771742]
[1767510359739,0.04853448,133.81,133.77,3.94909027]
[1767510359945,0.04853448,133.81,133.77,4.7771742]
[1767510360542,0.04853448,133.81,133.77,3.94909027]
[1767510360747,0.04853448,133.81,133.78,4.45906789]
[1767510360934,0.04853448,133.81,133.78,3.63098396]
[1767510362144,3.80474331,133.86,133.78,5.13098396]
[1767510362339,0.82808393,133.91,133.83,0.82808393]
[1767510362740,0.82808393,133.91,133.84,0.82808393]
[1767510363250,0.05298934,133.89,133.86,0.04927055]
[1767510363845,6.77808934,133.89,133.86,0.04927055]
[1767510364542,7.40399572,133.89,133.86,0.04927055]
[1767510366550,0.66649561,133.88,133.83,0.82808393]
[1767510367552,0.66649561,133.88,133.84,0.05594109]
[1767510372750,6.77808934,133.89,133.84,3.68692505]
[1767510372954,0.05298934,133.89,133.86,4.45906789]
[1767510373250,0.80151559,133.92,133.86,4.45906789]
[1767510374145,0.04755878,133.9,133.88,0.04966247]
[1767510379147,1.63043296,133.94,133.88,3.68064643]
[1767510379357,0.80234903,133.93,133.88,3.68064643]
[1767510379657,7.52544903,133.93,133.88,3.68064643]
[1767510379848,8.35353296,133.93,133.88,3.68064643]
[1767510380047,0.80234903,133.93,133.88,3.68064643]
[1767510380247,0.80234903,133.93,133.88,4.50873036]
[1767510381751,0.80234903,133.93,133.88,3.68064643]
[1767510384661,1.63043296,133.93,133.88,3.68064643]
[1767510385760,8.35343296,133.93,133.88,3.68064643]
[1767510398368,7.52534903,133.93,133.88,3.68064643]
[1767510398571,8.35343296,133.93,133.88,3.68064643]
[1767510403974,1.63043296,133.93,133.88,3.68064643]
[1767510407473,7.55048393,133.94,133.88,3.68064643]
[1767510407676,5.66561897,133.93,133.89,3.83503384]
[1767510407867,0.82808393,133.94,133.89,3.83503384]
[1767510408067,5.66562624,133.93,133.89,3.83503384]
[1767510408273,0.82808393,133.94,133.89,3.83503384]
[1767510408474,5.66648353,133.93,133.89,3.83503384]
[1767510408772,0.82808393,133.94,133.89,3.83503384]
[1767510408976,5.66648134,133.93,133.89,3.83503384]
[1767510409176,0.82808393,133.94,133.89,3.83503384]
[1767510409374,5.66745617,133.93,133.89,3.83503384]
[1767510409574,0.82808393,133.94,133.89,3.83503384]
[1767510409875,6.49554448,133.93,133.89,3.83503384]
[1767510410072,0.82808393,133.93,133.89,3.83503384]
[1767510411877,0.79288568,133.98,133.89,3.83503384]
[1767510412069,0.82808393,133.96,133.92,0.05120042]
[1767510412269,6.50014196,133.95,133.93,0.05628241]
[1767510412469,0.82808393,133.95,133.93,0.05628241]
[1767510413174,0.79288568,133.96,133.93,0.05628241]
[1767510413373,7.29546022,133.95,133.93,0.05628241]
[1767510413566,7.29533783,133.94,133.89,3.83503384]
[1767510413875,1.62096961,133.94,133.89,3.83503384]
[1767510414276,1.62096961,133.93,133.87,3.83503384]
[1767510414474,0.04824745,133.91,133.89,0.05135083]
[1767510417986,6.7226,133.94,133.89,3.88638467]
[1767510418284,5.68110182,133.93,133.89,3.88638467]
[1767510418486,6.7226,133.94,133.89,3.88638467]
[1767510418674,5.68149979,133.93,133.89,3.88638467]
[1767510418980,6.7226,133.94,133.89,3.88638467]
[1767510419182,5.68151153,133.93,133.89,3.88638467]
[1767510419378,6.7226,133.94,133.89,3.88638467]
[1767510419578,5.68215426,133.93,133.89,3.88638467]
[1767510419778,6.7226,133.94,133.89,3.88638467]
[1767510419977,5.68215426,133.93,133.89,3.88638467]
[1767510420182,6.7226,133.94,133.89,3.88638467]
[1767510420385,5.68266185,133.93,133.89,3.88638467]
[1767510420577,7.51739551,133.94,133.89,3.88638467]
[1767510420779,5.6826617,133.93,133.89,3.88638467]
[1767510420982,7.51739551,133.94,133.89,3.88638467]
[1767510421180,5.68265222,133.93,133.89,3.88638467]
[1767510421380,7.51739551,133.94,133.89,3.88638467]
[1767510421689,5.68367752,133.93,133.89,3.88638467]
[1767510421883,7.51739551,133.94,133.89,3.88638467]
[1767510422182,5.68368102,133.93,133.89,3.88638467]
[1767510422377,7.51739551,133.94,133.89,3.88638467]
[1767510422580,4.01960284,133.98,133.9,3.99957813]
[1767510422780,4.01960284,133.96,133.93,0.05663273]
[1767510422980,4.01960284,133.96,133.9,3.99957813]
[1767510423787,10.74110284,133.96,133.9,3.99957813]
[1767510423989,10.74110284,133.96,133.92,0.04795002]
[1767510425985,4.01960284,133.96,133.92,0.04795002]
[1767510426190,0.0509594,133.95,133.92,0.04795002]
[1767510429891,4.01960284,133.99,133.92,4.04752815]
[1767510430095,4.01960284,133.99,133.93,3.99957813]
[1767510430586,4.01960284,133.98,133.93,3.99957813]
[1767510432988,4.01960284,133.97,133.92,0.04795002]
[1767510433189,4.01960284,133.95,133.92,0.04795002]
[1767510433497,1.29159588,133.98,133.92,0.04795002]
[1767510433694,4.01960284,133.96,133.92,0.04795002]
[1767510440600,5.31119872,133.98,133.92,4.04752815]
[1767510440900,5.63803368,133.97,133.92,4.04752815]
[1767510441199,5.63803368,133.96,133.92,4.04752815]
[1767510441400,10.74010284,133.98,133.92,4.04752815]
[1767510441601,5.63790736,133.97,133.92,4.04752815]
[1767510441799,5.63790736,133.96,133.92,4.04752815]
[1767510441990,10.74010284,133.98,133.92,4.04752815]
[1767510442190,5.63903418,133.97,133.92,4.04752815]
[1767510442391,5.63903418,133.96,133.92,4.04752815]
[1767510442592,10.74010284,133.98,133.92,4.04752815]
[1767510442793,5.63901849,133.97,133.92,4.04752815]
[1767510443002,5.63901849,133.96,133.92,4.04752815]
[1767510443203,10.74010284,133.98,133.92,4.04752815]
[1767510443395,5.64008423,133.97,133.92,4.04752815]
[1767510443591,5.64008423,133.96,133.92,4.04752815]
[1767510443787,10.74010284,133.98,133.92,4.04752815]
[1767510444096,5.64055776,133.97,133.92,4.04752815]
[1767510444297,5.64055776,133.96,133.92,4.04752815]
[1767510444497,10.74010284,133.98,133.92,4.04752815]
[1767510444698,5.64058831,133.97,133.92,4.04752815]
[1767510444892,5.64058831,133.96,133.92,4.04752815]
[1767510445092,10.74010284,133.98,133.92,4.04752815]
[1767510445389,5.64055819,133.97,133.92,4.04752815]
[1767510445593,5.64055819,133.96,133.92,4.04752815]
[1767510445800,10.74010284,133.98,133.92,4.04752815]
[1767510445998,5.64068111,133.97,133.92,4.04752815]
[1767510446301,5.64068111,133.96,133.92,4.04752815]
[1767510446487,10.74010284,133.98,133.92,4.04752815]
[1767510446690,5.6408239,133.97,133.92,4.04752815]
[1767510446896,5.6408239,133.96,133.92,4.04752815]
[1767510447092,10.74010284,133.98,133.92,4.04752815]
[1767510447292,9.66042014,133.97,133.92,4.04752815]
[1767510447498,5.6408173,133.96,133.92,4.04752815]
[1767510449095,9.66042014,133.96,133.92,0.04795002]
[1767510449295,4.01960284,133.96,133.92,0.04795002]
[1767510464217,5.65126895,133.95,133.92,0.04795002]
[1767510464514,4.01960284,133.96,133.92,0.04795002]
[1767510464715,5.65126996,133.95,133.92,0.04795002]
[1767510465016,4.01960284,133.96,133.92,0.04795002]
[1767510465213,5.65129995,133.95,133.92,0.04795002]
[1767510465411,4.01960284,133.96,133.92,0.04795002]
[1767510465612,5.65213986,133.95,133.92,0.04795002]
[1767510465811,4.01960284,133.96,133.92,0.04795002]
[1767510466010,5.65215343,133.95,133.92,0.04795002]
[1767510466211,4.01960284,133.96,133.92,0.04795002]
[1767510466410,9.60529977,133.95,133.92,0.04795002]
[1767510466617,3.95232182,133.95,133.92,0.04795002]
[1767510473325,3.95232182,133.99,133.92,0.04795002]
[1767510473526,3.95232182,133.97,133.92,0.04795002]
[1767510473821,3.95232182,133.99,133.92,11.82074337]
[1767510474028,3.95232182,133.99,133.94,0.04920051]
[1767510475732,3.95232182,133.99,133.94,3.80709798]
[1767510476323,3.95232182,133.99,133.94,0.04920051]
[1767510480027,6.7195,134.0,133.94,3.80709798]
[1767510480221,10.59393918,134.0,133.94,5.09869386]
[1767510480526,10.59393918,134.0,133.95,0.82577738]
[1767510480527,3.87443918,134.0,133.95,0.82577738]
[1767510481118,3.87443918,134.0,133.94,7.59737789]
[1767510484225,3.87443918,134.01,133.96,0.82577738]
[1767510484527,3.87443918,134.01,133.97,0.05251277]
[1767510485828,3.87443918,134.0,133.97,0.05251277]
[1767510487126,10.59393918,134.0,133.97,0.05251277]
[1767510487529,3.87443918,133.99,133.97,0.05251277]
[1767510487732,3.87443918,133.98,133.93,0.82577738]
[1767510488632,0.05522103,133.97,133.94,0.0559934]
[1767510499542,3.87443918,134.0,133.95,3.90077846]
[1767510499739,3.87443918,134.0,133.95,4.72655584]
[1767510500336,3.87443918,134.0,133.96,0.82577738]
[1767510504649,3.87443918,134.0,133.95,10.62257846]
[1767510504847,3.87443918,134.0,133.95,11.44835584]
[1767510505952,3.87443918,134.0,133.95,11.39320921]
[1767510513251,3.87443918,134.0,133.94,0.0559934]
[1767510513451,3.87443918,134.0,133.94,3.93005479]